bitfinex-derivatives/quotes_SOLF0:USTF0_20241026
["timestamp","ask_amount","ask_price","bid_price","bid_amount"]
[1729930655119,8.2390885,167.91,167.87,2.9816]
[1729930657912,8.2390885,167.9,167.87,2.9816]
[1729930662827,12.6390885,167.92,167.89,2.9812]
[1729930663018,4.4,167.93,167.89,8.2390885]
[1729930663318,8.2390885,167.94,167.91,2.9807]
[1729930666021,8.2390885,167.94,167.9,2.981]
[1729930667315,8.2390885,167.92,167.87,8.2390885]
[1729930667521,8.2390885,167.91,167.89,2.9812]
[1729930667820,8.2390885,167.91,167.86,12.6390885]
[1729930668027,8.2390885,167.91,167.88,2.9814]
[1729930669322,8.2390885,167.91,167.85,1.301]
[1729930669521,8.2390885,167.9,167.87,2.9815]
[1729930675324,8.2390885,167.9,167.85,1.301]
[1729930675824,12.6390885,167.91,167.86,8.2390885]
[1729930676017,8.2390885,167.92,167.89,2.9812]
[1729930679024,8.2390885,167.91,167.86,8.2390885]
[1729930680429,8.2390885,167.91,167.87,2.9815]
[1729930684326,11.2199885,167.91,167.87,2.9815]
[1729930685026,8.2390885,167.91,167.87,2.9815]
[1729930692034,11.2199885,167.91,167.87,2.9815]
[1729930693139,8.2390885,167.89,167.87,2.9815]
[1729930693543,2.9801,167.96,167.88,8.2390885]
[1729930693737,12.6390885,167.95,167.9,8.2390885]
[1729930694246,4.4,167.95,167.91,2.9807]
[1729930694438,12.6390885,167.95,167.91,2.9807]
[1729930698844,8.2390885,167.93,167.91,2.9807]
[1729930701242,8.2390885,167.92,167.87,4.4]
[1729930701439,8.2390885,167.89,167.88,4.63716572]
[1729930702342,8.2390885,167.89,167.85,1.301]
[1729930702546,8.2390885,167.89,167.86,4.63844101]
[1729930702739,8.2390885,167.88,167.87,4.63844101]
[1729930702941,8.2390885,167.88,167.86,2.9816]
[1729930704040,8.2390885,167.88,167.85,1.301]
[1729930704041,8.2390885,167.87,167.85,2.9819]
[1729930704235,8.2390885,167.87,167.86,4.63921764]
[1729930705047,8.2390885,167.87,167.85,2.9819]
[1729930705248,8.2390885,167.87,167.86,4.64002098]
[1729930705747,4.4,167.91,167.86,7.62172098]
[1729930705748,7.3809,167.91,167.86,7.62172098]
[1729930705948,8.2390885,167.88,167.86,2.9817]
[1729930706351,8.2390885,167.88,167.85,2.9819]
[1729930706538,8.2390885,167.88,167.86,4.64103678]
[1729930706743,8.2390885,167.88,167.83,9.4923885]
[1729930706945,8.2390885,167.88,167.84,7.62302974]
[1729930707143,4.4,167.91,167.85,4.64102974]
[1729930707441,2.9822,167.84,167.79,2.9828]
[1729930707641,8.2390885,167.83,167.8,4.64212926]
[1729930707849,8.2390885,167.83,167.81,4.64212926]
[1729930708041,8.2390885,167.83,167.82,3.15087466]
[1729930708347,8.2390885,167.83,167.79,2.9828]
[1729930708544,8.2390885,167.83,167.8,4.64143943]
[1729930708744,8.2390885,167.83,167.79,2.9828]
[1729930708945,8.2390885,167.83,167.81,1.49154358]
[1729930709148,8.2390885,167.83,167.79,2.9828]
[1729930709343,8.2390885,167.83,167.8,4.64153264]
[1729930709549,8.2390885,167.83,167.79,2.9828]
[1729930709749,8.2390885,167.83,167.8,4.64039651]
[1729930709950,8.2390885,167.83,167.79,2.9828]
[1729930710253,8.2390885,167.83,167.8,4.64041575]
[1729930710453,8.2390885,167.83,167.79,2.9828]
[1729930710749,8.2390885,167.83,167.8,4.6395953]
[1729930710956,8.2390885,167.81,167.79,2.9828]
[1729930711847,8.2390885,167.81,167.69,1.2431]
[1729930712052,8.2390885,167.8,167.76,4.63916416]
[1729930712251,8.2390885,167.8,167.77,3.14747205]
[1729930712452,21.681,167.9,167.78,8.2390885]
[1729930712453,3.781,167.9,167.78,8.2390885]
[1729930712747,3.781,167.9,167.73,194.49841556]
[1729930712748,8.2390885,167.84,167.79,8.2390885]
[1729930712949,8.2390885,167.84,167.81,8.2390885]
[1729930712950,4.4,167.84,167.81,8.2390885]
[1729930713852,4.4,167.84,167.77,3.7806]
[1729930713853,11.2204885,167.89,167.84,2.9821]
[1729930714052,4.4,167.88,167.84,2.9821]
[1729930714854,4.4,167.88,167.83,11.2213885]
[1729930715659,4.4,167.88,167.83,2.9823]
[1729930715660,8.2390885,167.87,167.83,2.9823]
[1729930716066,8.2390885,167.86,167.83,2.9823]
[1729930723271,8.2390885,167.86,167.81,8.2390885]
[1729930723577,8.2390885,167.84,167.8,2.9826]
[1729930723871,8.2390885,167.84,167.77,8.1806]
[1729930723872,8.2390885,167.81,167.77,3.7806]
[1729930724268,8.2390885,167.81,167.77,6.7639]
[1729930724566,8.2390885,167.8,167.77,2.9833]
[1729930724765,8.2390885,167.8,167.76,2.9835]
[1729930733277,8.2390885,167.8,167.77,2.9833]
[1729930733475,8.2390885,167.81,167.77,2.9833]
[1729930741076,8.2390885,167.81,167.75,8.2390885]
[1729930741280,4.4,167.83,167.78,8.2390885]
[1729930741975,4.4,167.83,167.8,2.9828]
[1729930742286,4.4,167.83,167.75,1.49186313]
[1729930742287,0.02327987,167.8,167.79,8.2390885]
[1729930742782,0.02327987,167.8,167.79,11.2220885]
[1729930743377,12.6390885,167.85,167.79,8.2390885]
[1729930743571,12.6390885,167.85,167.81,2.9826]
[1729930744378,8.2390885,167.84,167.81,2.9826]
[1729930744685,8.2390885,167.84,167.78,8.2390885]
[1729930744878,8.2390885,167.81,167.78,2.983]
[1729930745681,8.2390885,167.79,167.74,3.7655]
[1729930745886,8.2390885,167.79,167.74,12.0045885]
[1729930746882,8.2390885,167.79,167.74,3.7655]
[1729930747086,8.2390885,167.79,167.74,10.7596885]
[1729930747388,8.2390885,167.79,167.74,10.72309764]
[1729930748280,8.2390885,167.79,167.76,2.9834]
[1729930755791,8.2390885,167.8,167.76,2.9834]
[1729930755989,11.2220885,167.8,167.75,11.2226885]
[1729930756294,11.2220885,167.8,167.75,8.2390885]
[1729930757395,11.2220885,167.8,167.76,2.9835]
[1729930758989,8.2390885,167.8,167.76,2.9835]
[1729930762291,4.4,167.81,167.75,8.2390885]
[1729930762589,8.2390885,167.83,167.77,8.2390885]
[1729930762894,4.4,167.84,167.79,8.2390885]
[1729930763093,12.6390885,167.85,167.81,2.9826]
[1729930763782,12.6390885,167.85,167.79,8.2390885]
[1729930763987,15.6210885,167.85,167.8,2.9828]
[1729930769194,15.5494765,167.85,167.8,2.9828]
[1729930770098,8.2390885,167.83,167.8,2.9828]
[1729930770298,8.2390885,167.81,167.63,17.89]
[1729930770493,8.2390885,167.81,167.77,2.9833]
[1729930770801,8.2390885,167.81,167.78,1.49170217]
[1729930771000,8.2390885,167.81,167.77,2.9833]
[1729930771195,8.2390885,167.81,167.78,1.49170515]
[1729930771397,8.2390885,167.81,167.77,2.9833]
[1729930771605,8.2390885,167.81,167.78,1.4917581]
[1729930771793,8.2390885,167.81,167.75,8.2390885]
[1729930771998,8.2390885,167.81,167.78,2.9832]
[1729930772397,8.2390885,167.81,167.78,2.9831]
[1729930772596,8.2390885,167.83,167.78,2.9831]
[1729930773205,8.2390885,167.83,167.79,1.49170389]
[1729930773402,8.2390885,167.83,167.78,2.9831]
[1729930773596,8.2390885,167.83,167.79,4.5874226]
[1729930773795,8.2390885,167.83,167.78,2.9831]
[1729930773999,8.2390885,167.83,167.79,4.58742822]
[1729930774295,8.2390885,167.83,167.8,1.49168387]
[1729930774497,8.2390885,167.83,167.79,2.9828]
[1729930774697,8.2390885,167.83,167.8,1.49168843]
[1729930775001,8.2390885,167.83,167.79,2.9828]
[1729930775202,8.2390885,167.83,167.8,1.49168843]
[1729930775389,8.2390885,167.83,167.79,2.9828]
[1729930775590,8.2390885,167.83,167.8,1.49168028]
[1729930775797,8.2390885,167.83,167.79,2.9828]
[1729930776007,8.2390885,167.83,167.8,1.49168028]
[1729930776207,8.2390885,167.83,167.79,2.9828]
[1729930776505,8.2390885,167.83,167.8,4.58993791]
[1729930776804,8.2390885,167.83,167.79,2.9828]
[1729930777006,8.2390885,167.83,167.8,4.58993785]
[1729930777201,8.2390885,167.83,167.79,2.9828]
[1729930777400,8.2390885,167.83,167.8,1.49168028]
[1729930777600,8.2390885,167.83,167.79,2.9828]
[1729930777793,8.2390885,167.83,167.8,1.49170675]
[1729930777993,8.2390885,167.83,167.79,2.9828]
[1729930778202,8.2390885,167.83,167.8,1.49170675]
[1729930778494,8.2390885,167.83,167.79,2.9828]
[1729930778701,11.2213885,167.83,167.8,1.49170675]
[1729930778895,11.2213885,167.83,167.78,2.9831]
[1729930779095,8.2390885,167.83,167.79,4.59020303]
[1729930779302,8.2390885,167.83,167.8,1.49170675]
[1729930779503,8.2390885,167.83,167.79,2.9829]
[1729930779699,8.2390885,167.83,167.8,1.49170675]
[1729930780003,8.2390885,167.83,167.77,8.2390885]
[1729930780420,8.2390885,167.82,167.78,4.59028676]
[1729930780603,8.2390885,167.82,167.79,4.59028676]
[1729930780803,8.2390885,167.82,167.8,1.49171751]
[1729930781098,8.2390885,167.82,167.77,8.2390885]
[1729930781301,8.2390885,167.82,167.78,7.5735107]
[1729930781495,8.2390885,167.82,167.79,4.5904107]
[1729930781701,8.2390885,167.82,167.79,3.09869165]
[1729930781900,8.2390885,167.82,167.8,1.49170581]
[1729930782103,8.2390885,167.82,167.78,2.9831]
[1729930782309,8.2390885,167.82,167.79,4.59040508]
[1729930782506,8.2390885,167.82,167.8,1.49170581]
[1729930782707,8.2390885,167.82,167.78,2.9831]
[1729930782904,8.2390885,167.82,167.79,4.59049899]
[1729930783105,8.2390885,167.82,167.8,1.49171905]
[1729930783307,8.2390885,167.82,167.78,2.9831]
[1729930783506,8.2390885,167.82,167.79,4.59073077]
[1729930783709,8.2390885,167.82,167.78,2.9831]
[1729930783913,8.2390885,167.82,167.79,4.59073187]
[1729930784211,8.2390885,167.82,167.8,1.49171905]
[1729930784404,8.2390885,167.82,167.78,2.9831]
[1729930784606,8.2390885,167.82,167.79,4.59106104]
[1729930784806,8.2390885,167.82,167.8,1.49173382]
[1729930785107,8.2390885,167.82,167.78,2.9831]
[1729930785303,8.2390885,167.82,167.79,4.59117167]
[1729930785505,8.2390885,167.82,167.8,1.49173382]
[1729930785706,8.2390885,167.82,167.77,8.2390885]
[1729930785901,8.2390885,167.82,167.78,4.59137158]
[1729930786107,8.2390885,167.82,167.79,4.59137158]
[1729930786308,8.2390885,167.82,167.8,1.49171905]
[1729930786508,8.2390885,167.82,167.77,8.2390885]
[1729930786714,8.2390885,167.82,167.78,4.59169869]
[1729930786922,8.2390885,167.82,167.79,4.59169869]
[1729930787122,8.2390885,167.82,167.8,1.49171905]
[1729930787430,8.2390885,167.82,167.78,2.9831]
[1729930787617,8.2390885,167.82,167.79,1.49172059]
[1729930787823,8.2390885,167.82,167.8,1.49172059]
[1729930788120,8.2390885,167.82,167.78,2.9831]
[1729930788322,8.2390885,167.82,167.79,4.5921145]
[1729930788520,8.2390885,167.82,167.8,1.49173135]
[1729930788723,8.2390885,167.82,167.78,2.9831]
[1729930789024,8.2390885,167.82,167.79,4.5924365]
[1729930789210,8.2390885,167.82,167.8,1.49173135]
[1729930789412,8.2390885,167.82,167.78,2.9831]
[1729930789721,8.2390885,167.82,167.79,4.59284572]
[1729930789910,8.2390885,167.82,167.78,2.9831]
[1729930790110,8.2390885,167.82,167.79,4.5928459]
[1729930790314,11.2215885,167.82,167.8,1.49173135]
[1729930790515,15.6215885,167.82,167.77,11.2223885]
[1729930790719,15.6215885,167.82,167.78,1.49176196]
[1729930790924,15.6215885,167.82,167.79,1.49176196]
[1729930791121,15.6215885,167.82,167.8,1.49176196]
[1729930791319,15.6215885,167.82,167.77,11.2223885]
[1729930791710,15.6215885,167.82,167.78,1.49177012]
[1729930792116,15.6215885,167.82,167.77,11.2223885]
[1729930792320,15.6215885,167.82,167.78,1.49176914]
[1729930792526,15.6215885,167.82,167.79,1.49176914]
[1729930792723,15.6215885,167.82,167.8,1.49176914]
[1729930792916,15.6215885,167.82,167.77,11.2223885]
[1729930793112,15.6215885,167.82,167.78,1.49177068]
[1729930793323,15.6215885,167.82,167.79,1.49177068]
[1729930793523,15.6215885,167.82,167.8,1.49177068]
[1729930793724,15.6215885,167.82,167.77,11.2223885]
[1729930794025,15.6215885,167.82,167.78,1.49177068]
[1729930794228,15.6215885,167.82,167.79,1.49177068]
[1729930794517,15.6215885,167.82,167.8,1.49177068]
[1729930794721,15.6215885,167.82,167.77,2.9833]
[1729930794927,15.6215885,167.82,167.78,1.49183743]
[1729930795224,15.6215885,167.82,167.79,1.49183743]
[1729930795520,11.2219885,167.8,167.75,2.9836]
[1729930795719,8.2390885,167.79,167.76,1.49188904]
[1729930795917,8.2390885,167.79,167.77,1.49188904]
[1729930796118,8.2390885,167.79,167.78,1.49188904]
[1729930796526,8.2390885,167.79,167.75,2.9836]
[1729930797025,8.2390885,167.79,167.76,1.49203967]
[1729930797225,8.2390885,167.79,167.77,1.49203967]
[1729930797424,8.2390885,167.79,167.75,2.9836]
[1729930797627,8.2390885,167.79,167.76,1.4920396]
[1729930797926,8.2390885,167.79,167.75,2.9836]
[1729930797927,8.2390885,167.79,167.77,1.4920396]
[1729930798128,8.2390885,167.79,167.75,2.9836]
[1729930798321,8.2390885,167.79,167.76,1.49200082]
[1729930798625,8.2390885,167.79,167.77,1.49200082]
[1729930798826,8.2390885,167.79,167.75,2.9836]
[1729930799027,8.2390885,167.79,167.76,1.49200082]
[1729930799327,8.2390885,167.79,167.77,1.49200082]
[1729930799528,8.2390885,167.79,167.75,2.9836]
[1729930799829,8.2390885,167.79,167.76,1.49200082]
[1729930800033,8.2390885,167.79,167.77,1.49200082]
[1729930800330,8.2390885,167.79,167.75,2.9836]
[1729930800526,11.2221885,167.79,167.76,1.4920273]
[1729930800829,4.4,167.78,167.77,1.4920273]
[1729930801415,4.4,167.78,167.74,2.9839]
[1729930801624,4.4,167.78,167.75,1.49207989]
[1729930801822,4.4,167.78,167.74,2.9839]
[1729930801823,4.4,167.78,167.76,1.49203862]
[1729930802025,4.4,167.78,167.77,1.49203862]
[1729930802723,4.4,167.78,167.74,2.9839]
[1729930802921,4.4,167.78,167.75,1.49203862]
[1729930803224,4.4,167.78,167.67,10.7068885]
[1729930803225,8.2390885,167.76,167.67,10.7068885]
[1729930803428,8.2390885,167.72,167.68,1.49244274]
[1729930803619,4.4,167.72,167.69,1.49244274]
[1729930803819,4.4,167.72,167.7,1.49244274]
[1729930804018,4.4,167.72,167.71,1.49244274]
[1729930804320,4.4,167.72,167.71,4.47684274]
[1729930805221,8.2390885,167.74,167.71,4.47682111]
[1729930805421,12.6390885,167.74,167.71,2.9844]
[1729930806428,2.9841,167.73,167.68,2.9849]
[1729930806728,2.9841,167.73,167.69,1.49244844]
[1729930806924,2.9841,167.73,167.7,1.49244844]
[1729930807129,8.2390885,167.72,167.68,2.9849]
[1729930807330,8.2390885,167.72,167.69,1.49252823]
[1729930807532,8.2390885,167.72,167.7,1.49252823]
[1729930807718,8.2390885,167.72,167.68,2.9849]
[1729930807917,8.2390885,167.72,167.69,1.49252823]
[1729930808125,8.2390885,167.72,167.7,1.49252823]
[1729930808432,4.4,167.74,167.7,2.9846]
[1729930808729,12.6390885,167.74,167.7,2.9846]
[1729930809927,2.9214667,167.82,167.71,8.2390885]
[1729930810131,1.2767,167.83,167.73,2.984]
[1729930810132,2.9833,167.78,167.73,2.984]
[1729930810332,4.4,167.77,167.73,2.984]
[1729930814330,8.2390885,167.76,167.67,6.8678]
[1729930814536,8.2390885,167.76,167.71,2.9844]
[1729930815139,8.2390885,167.75,167.71,2.9844]
[1729930816127,11.2227885,167.75,167.71,2.9844]
[1729930816729,8.2390885,167.75,167.71,2.9844]
[1729930816933,8.2390885,167.76,167.72,2.9841]
[1729930821338,4.4,167.79,167.75,2.9836]
[1729930821539,8.2390885,167.79,167.75,2.9836]
[1729930823030,8.2390885,167.78,167.75,2.9836]
[1729930825144,8.2390885,167.76,167.73,2.984]
[1729930827541,8.2390885,167.76,167.72,2.9842]
[1729930827741,8.2390885,167.73,167.67,15.1068885]
[1729930827939,8.2390885,167.73,167.68,1.49231341]
[1729930828138,8.2390885,167.73,167.69,1.49231341]
[1729930828339,8.2390885,167.73,167.7,1.49231341]
[1729930828649,8.2390885,167.73,167.67,13.8856885]
[1729930828947,8.2390885,167.73,167.68,1.4923957]
[1729930829146,8.2390885,167.73,167.69,1.4923957]
[1729930829332,8.2390885,167.73,167.7,2.9845]
[1729930831639,2.9838,167.75,167.7,2.9845]
[1729930831838,8.2390885,167.72,167.67,1.2466]
[1729930832040,8.2390885,167.72,167.68,1.49247221]
[1729930832248,8.2390885,167.72,167.67,9.4856885]
[1729930832539,8.2390885,167.72,167.68,1.49246011]
[1729930832734,8.2390885,167.72,167.67,9.4856885]
[1729930832934,8.2390885,167.72,167.69,2.9846]
[1729930838450,2.9843,167.72,167.67,4.2317]
[1729930838650,8.2390885,167.72,167.68,1.49253549]
[1729930838849,8.2390885,167.72,167.67,9.4856885]
[1729930839054,8.2390885,167.72,167.68,1.49250036]
[1729930839249,8.2390885,167.72,167.67,9.4856885]
[1729930839449,8.2390885,167.72,167.68,1.4925001]
[1729930839644,8.2390885,167.72,167.67,9.4856885]
[1729930839847,8.2390885,167.72,167.68,1.49250276]
[1729930840151,8.2390885,167.72,167.67,9.4856885]
[1729930840352,8.2390885,167.72,167.69,2.9847]
[1729930840852,2.9841,167.73,167.69,2.9847]
[1729930841046,11.2231885,167.73,167.69,2.9847]
[1729930841654,8.2390885,167.73,167.69,2.9847]
[1729930841848,4.21720092,167.83,167.71,8.2390885]
[1729930842155,11.2222885,167.78,167.73,8.2390885]
[1729930843354,8.2390885,167.75,167.71,2.9843]
[1729930843544,8.2390885,167.74,167.71,2.9843]
[1729930844149,8.2390885,167.74,167.68,12.6390885]
[1729930844355,8.2390885,167.74,167.7,2.9846]
[1729930846754,8.2390885,167.74,167.7,11.2236885]
[1729930847556,8.2390885,167.74,167.7,2.9846]
[1729930847953,8.2390885,167.73,167.7,2.9846]
[1729930850452,8.2390885,167.73,167.69,2.9846]
[1729930852360,8.2390885,167.73,167.7,1.49246128]
[1729930852552,8.2390885,167.73,167.69,2.9846]
[1729930852748,8.2390885,167.73,167.7,1.49246282]
[1729930852956,8.2390885,167.73,167.69,2.9846]
[1729930853452,8.2390885,167.73,167.7,1.49246282]
[1729930853656,8.2390885,167.73,167.69,2.9846]
[1729930853862,8.2390885,167.73,167.7,1.49246282]
[1729930854050,8.2390885,167.73,167.69,2.9846]
[1729930854255,8.2390885,167.73,167.7,1.49246282]
[1729930854449,8.2390885,167.73,167.69,2.9846]
[1729930854763,8.2390885,167.73,167.7,1.49246282]
[1729930854974,8.2390885,167.73,167.69,2.9846]
[1729930855154,8.2390885,167.73,167.7,1.49246128]
[1729930855461,8.2390885,167.73,167.69,2.9846]
[1729930855663,8.2390885,167.73,167.7,1.49246282]
[1729930855861,8.2390885,167.73,167.69,2.9846]
[1729930856058,8.2390885,167.73,167.7,1.49246282]
[1729930856261,8.2390885,167.73,167.69,2.9846]
[1729930856562,8.2390885,167.73,167.7,1.49246282]
[1729930856862,8.2390885,167.73,167.69,2.9846]
[1729930857061,8.2390885,167.73,167.7,1.49246282]
[1729930857255,8.2390885,167.73,167.69,2.9846]
[1729930857453,8.2390885,167.73,167.7,1.49246278]
[1729930857755,8.2390885,167.73,167.69,2.9846]
[1729930857951,8.2390885,167.73,167.7,1.49246278]
[1729930858153,8.2390885,167.73,167.69,2.9846]
[1729930858154,8.2390885,167.71,167.67,4.2316]
[1729930858354,8.2390885,167.71,167.68,1.49251115]
[1729930858555,8.2390885,167.71,167.69,1.49251115]
[1729930858763,8.2390885,167.71,167.67,2.985]
[1729930858965,8.2390885,167.71,167.68,1.49259094]
[1729930859258,8.2390885,167.7,167.69,1.49259094]
[1729930859459,8.2390885,167.7,167.61,1.3201]
[1729930859460,8.2390885,167.7,167.66,2.9853]
[1729930859664,8.2390885,167.69,167.66,2.9853]
[1729930860167,11.2239885,167.69,167.64,197.57467224]
[1729930860960,8.2390885,167.66,167.64,194.58907224]
[1729930862060,8.2390885,167.66,167.62,2.986]
[1729930863072,15.6236885,167.7,167.65,11.2244885]
[1729930864262,12.6390885,167.7,167.66,2.9852]
[1729930869466,12.6390885,167.7,167.65,8.2390885]
[1729930869667,12.6390885,167.7,167.64,8.2390885]
[1729930871369,15.6236885,167.7,167.65,2.9854]
[1729930876481,8.2390885,167.69,167.65,2.9854]
[1729930877786,8.2390885,167.66,167.61,2.5663]
[1729930879277,8.2390885,167.66,167.6,194.64672855]
[1729930879484,8.2390885,167.64,167.6,194.64672855]
[1729930880080,8.2390885,167.64,167.6,197.63292855]
[1729930880288,8.2390885,167.64,167.59,8.2390885]
[1729930880678,11.2248885,167.64,167.59,11.2255885]
[1729930883290,8.2390885,167.62,167.59,2.9865]
[1729930885793,8.2390885,167.6,167.53,2.5218]
[1729930885982,8.2390885,167.59,167.54,9.73259584]
[1729930886182,8.2390885,167.59,167.54,8.2390885]
[1729930886389,8.2390885,167.61,167.55,2.9872]
[1729930886590,8.2390885,167.61,167.56,8.2390885]
[1729930886779,4.38,167.65,167.59,8.2390885]
[1729930886980,12.6190885,167.65,167.59,8.2390885]
[1729930887182,12.6190885,167.65,167.61,2.9861]
[1729930887581,2.9857,167.64,167.59,2.9865]
[1729930887786,8.2390885,167.63,167.59,2.9865]
[1729930888195,8.2390885,167.62,167.59,2.9865]
[1729930889896,8.2390885,167.62,167.57,12.6190885]
[1729930890092,8.2390885,167.62,167.58,2.9867]
[1729930897602,8.2390885,167.6,167.53,1.2043]
[1729930897910,8.2390885,167.59,167.54,8.2390885]
[1729930898601,8.2390885,167.59,167.56,2.987]
[1729930899602,2.9863,167.61,167.56,8.2390885]
[1729930899603,8.2390885,167.61,167.56,8.2390885]
[1729930899908,8.2390885,167.62,167.58,2.9866]
[1729930901200,11.2250885,167.62,167.57,11.2258885]
[1729930901399,8.2390885,167.61,167.57,2.9868]
[1729930903399,8.2390885,167.61,167.56,8.2390885]
[1729930903608,8.2390885,167.59,167.56,2.987]
[1729930909215,11.2253885,167.61,167.56,2.987]
[1729930911819,2.9863,167.61,167.56,2.987]
[1729930912012,8.2390885,167.6,167.56,2.987]
[1729930915817,11.2254885,167.6,167.56,2.987]
[1729930916418,11.2254885,167.6,167.55,2.9872]
[1729930920525,11.2254885,167.6,167.54,8.2390885]
[1729930920725,11.2254885,167.6,167.56,2.9871]
[1729930922429,2.986,167.62,167.57,2.9869]
[1729930922622,4.38,167.63,167.57,8.2390885]
[1729930922926,4.38,167.63,167.58,8.2390885]
[1729930923523,3.9312,167.69,167.58,8.2390885]
[1729930923731,3.9312,167.69,167.63,8.2390885]
[1729930924030,4.38,167.68,167.64,8.2390885]
[1729930924224,4.38,167.68,167.64,11.2246885]
[1729930925419,4.38,167.68,167.64,2.9856]
[1729930925626,4.38,167.68,167.63,11.2248885]
[1729930926118,12.6190885,167.68,167.63,11.2248885]
[1729930927629,15.6040885,167.68,167.63,8.2390885]
[1729930929332,4.38,167.68,167.63,8.2390885]
[1729930929528,4.38,167.68,167.64,2.9857]
[1729930929731,4.38,167.68,167.63,8.2390885]
[1729930930332,182.1327034,167.71,167.66,8.2390885]
[1729930930534,190.3717919,167.71,167.66,8.2390885]
[1729930931730,2.9847,167.7,167.66,8.2390885]
[1729930933631,177.7527034,167.71,167.66,11.2243885]
[1729930934525,180.7372034,167.71,167.66,11.2243885]
[1729930939938,58.02,167.81,167.68,11.2239885]
[1729930940139,8.1051,167.8,167.68,8.2390885]
[1729930940335,8.2390885,167.75,167.7,8.2390885]
[1729930940532,11.2228885,167.75,167.7,8.2390885]
[1729930941327,2.9838,167.75,167.71,8.2390885]
[1729930942436,2.9838,167.75,167.7,8.2390885]
[1729930943240,177.68575417,167.78,167.73,8.2390885]
[1729930943437,185.92484267,167.78,167.73,8.2390885]
[1729930943945,177.68575417,167.78,167.74,8.2390885]
[1729930944239,177.68575417,167.78,167.69,1.3114]
[1729930944240,3.6787,167.88,167.77,8.2390885]
[1729930944447,8.2390885,167.82,167.77,8.2390885]
[1729930945346,11.2216885,167.82,167.77,8.2390885]
[1729930950050,2.9827,167.81,167.77,8.2390885]
[1729930952149,11.2223885,167.78,167.73,4.38]
[1729930952351,11.2223885,167.78,167.72,11.2231885]
[1729930953048,2.9834,167.77,167.72,11.2231885]
[1729930953749,11.2224885,167.77,167.72,11.2231885]
[1729930961649,2.9834,167.77,167.72,11.2231885]
[1729930968178,2.9834,167.77,167.74,8.2390885]
[1729930968573,8.2390885,167.82,167.76,8.2390885]
[1729930968767,4.38,167.84,167.78,8.2390885]
[1729930968974,4.38,167.84,167.81,8.2390885]
[1729930969180,7.3623,167.84,167.81,8.2390885]
[1729930969771,2.9823,167.83,167.8,8.2390885]
[1729930970969,2.9823,167.83,167.78,8.2390885]
[1729930971372,11.2213885,167.83,167.78,2.9832]
[1729930972375,8.2390885,167.94,167.82,8.2390885]
[1729930972577,8.2390885,167.9,167.85,8.2390885]
[1729930972777,8.2390885,167.9,167.85,12.6190885]
[1729930973978,8.2390885,167.9,167.84,8.2390885]
[1729930974385,11.2201885,167.9,167.84,8.2390885]
[1729930977487,11.2201885,167.9,167.83,7.3623]
[1729930977689,8.2390885,167.89,167.76,3.8106]
[1729930977986,4.38,167.91,167.76,3.8106]
[1729930977987,8.2390885,167.87,167.82,8.2390885]
[1729930978287,8.2390885,167.87,167.83,8.2390885]
[1729930978991,3.03563396,167.9,167.83,8.2390885]
[1729930978992,8.2390885,167.89,167.83,8.2390885]
[1729930979292,2.9815,167.88,167.83,8.2390885]
[1729930981998,2.9815,167.88,167.82,2.9824]
[1729930982291,2.9816,167.87,167.82,11.2214885]
[1729930983285,2.9814,167.89,167.82,11.2214885]
[1729930983586,8.2390885,167.88,167.82,11.2214885]
[1729930984394,11.2204885,167.88,167.82,11.2214885]
[1729930985189,4.38,167.91,167.84,8.2390885]
[1729930985395,2.9812,167.9,167.85,8.2390885]
[1729930985694,2.9812,167.9,167.87,8.2390885]
[1729930986395,2.9812,167.9,167.84,2.982]
[1729930986598,2.9812,167.9,167.86,8.2390885]
[1729931012305,8.2390885,167.88,167.82,3.7618]
[1729931012509,8.2390885,167.87,167.81,8.2390885]
[1729931014803,2.9824,167.83,167.77,7.3433]
[1729931015006,2.9824,167.83,167.79,8.2390885]
[1729931015811,11.2211885,167.84,167.8,8.2390885]
[1729931018510,11.2211885,167.84,167.79,8.2390885]
[1729931019215,11.2211885,167.84,167.78,2.9831]
[1729931019408,11.2211885,167.84,167.79,8.2390885]
[1729931023517,2.9821,167.84,167.8,8.2390885]
[1729931023916,3.8085,167.87,167.81,8.2390885]
[1729931024116,4.36,167.9,167.86,8.2390885]
[1729931024317,8.2390885,167.91,167.86,8.2390885]
[1729931024517,4.36,167.92,167.87,8.2390885]
[1729931024718,2.9811,167.9,167.87,8.2390885]
[1729931026322,2.9809,167.91,167.87,8.2390885]
[1729931026517,20.88684103,168.03,167.9,8.2390885]
[1729931026722,181.87993849,167.96,167.91,8.2390885]
[1729931026922,184.85993849,167.96,167.91,8.2390885]
[1729931027125,181.87993849,167.96,167.91,8.2390885]